bitfinex-derivatives/quotes_ETHF0:USTF0_20250106
["timestamp","ask_amount","ask_price","bid_price","bid_amount"]
[1736123151599,3.2078,3652.0,3651.7,35.7]
[1736123151803,3.2078,3652.0,3650.9,1.36556]
[1736123151804,0.2465,3651.9,3650.9,1.36556]
[1736123152093,3.2078,3651.2,3650.4,3.2078]
[1736123152298,3.2078,3651.2,3650.5,35.7]
[1736123152493,0.24657,3650.8,3650.5,35.7]
[1736123152893,0.4115,3651.1,3650.5,35.7]
[1736123153286,0.24657,3650.9,3650.5,35.94659]
[1736123153899,0.24656,3651.0,3650.6,0.24658]
[1736123154395,0.24656,3651.0,3650.5,35.94659]
[1736123154590,0.24656,3651.0,3650.5,35.7]
[1736123154792,0.4115,3651.1,3650.5,35.7]
[1736123154996,3.45432,3651.7,3651.2,0.24654]
[1736123155296,3.2078,3651.7,3650.9,3.2078]
[1736123155598,0.24652,3651.5,3651.1,0.24655]
[1736123156502,3.2078,3651.7,3650.9,3.2078]
[1736123156702,3.2078,3651.7,3651.1,0.24655]
[1736123156904,3.2078,3651.7,3650.9,3.2078]
[1736123157205,0.8374,3652.2,3651.1,0.24655]
[1736123157206,0.24654,3651.4,3651.1,0.24655]
[1736123157608,0.24653,3651.5,3651.1,0.24655]
[1736123158209,3.2078,3651.8,3650.5,38.9078]
[1736123158506,0.24657,3650.9,3650.5,40.27439]
[1736123158708,0.24657,3650.9,3650.6,0.24658]
[1736123159206,0.24657,3650.9,3650.5,38.9078]
[1736123159503,3.20284409,3652.0,3650.5,38.9078]
[1736123159504,3.2078,3651.6,3650.5,38.9078]
[1736123159700,0.24653,3651.5,3650.9,3.2078]
[1736123160003,5.79440409,3652.0,3650.9,3.2078]
[1736123160205,0.24653,3651.4,3651.0,0.24655]
[1736123160403,0.24653,3651.4,3651.1,0.24655]
[1736123160598,0.24653,3651.4,3650.9,3.2078]
[1736123160599,3.2078,3652.0,3650.9,3.2078]
[1736123160806,3.2078,3652.0,3651.0,2.58660409]
[1736123161007,0.24651,3651.8,3651.4,0.24653]
[1736123161196,0.24651,3651.8,3651.5,35.7]
[1736123161598,0.24651,3651.8,3651.5,35.94652]
[1736123161810,3.2078,3652.0,3651.5,35.7]
[1736123161811,0.24651,3651.7,3651.5,35.7]
[1736123162302,3.2078,3652.0,3651.5,35.7]
[1736123162702,0.24651,3651.8,3651.5,35.7]
[1736123163304,0.24651,3651.7,3651.5,35.7]
[1736123164204,3.2078,3652.0,3651.5,35.7]
[1736123164600,0.24651,3651.7,3651.5,35.7]
[1736123165206,0.24654,3651.2,3651.1,1.117]
[1736123165407,3.2078,3651.6,3650.4,3.2078]
[1736123165604,0.24659,3650.6,3650.4,3.2078]
[1736123165908,3.2078,3651.2,3650.5,35.7]
[1736123166113,3.2078,3650.8,3650.2,0.24661]
[1736123166412,0.24661,3650.3,3650.0,0.24662]
[1736123166704,3.2078,3650.8,3650.1,35.7]
[1736123166910,0.24661,3650.2,3650.1,35.7]
[1736123167702,0.24665,3649.6,3649.4,3.2078]
[1736123167898,0.24666,3649.5,3649.4,3.2078]
[1736123168102,0.24666,3649.5,3649.2,1.117]
[1736123168311,0.24667,3649.4,3649.3,35.7]
[1736123168707,0.24665,3649.7,3649.3,35.7]
[1736123169104,0.24663,3649.9,3649.3,35.94667]
[1736123169400,0.68342,3650.1,3649.6,0.24665]
[1736123169604,0.6932,3650.4,3649.8,0.24664]
[1736123169904,0.6932,3650.4,3649.7,3.2078]
[1736123169905,0.24661,3650.3,3649.7,3.2078]
[1736123170210,0.6932,3650.4,3649.8,1.117]
[1736123170409,0.6932,3650.4,3650.0,0.24662]
[1736123170614,0.4466,3650.4,3649.8,1.117]
[1736123170814,0.24661,3650.3,3649.9,0.24663]
[1736123171014,0.24661,3650.3,3649.8,1.36364]
[1736123171314,0.24661,3650.3,3649.8,1.117]
[1736123171510,0.24661,3650.3,3649.9,0.24663]
[1736123171713,0.24661,3650.2,3649.8,1.36364]
[1736123171913,0.4466,3650.4,3648.5,6.71163241]
[1736123171914,2.58660409,3650.0,3648.5,9.48053241]
[1736123172109,3.2078,3649.3,3648.5,6.27273241]
[1736123172304,0.2467,3649.0,3648.6,0.24672]
[1736123172509,0.2467,3649.0,3648.5,6.27273241]
[1736123172510,0.24669,3649.1,3648.7,35.94671]
[1736123173119,0.24668,3649.2,3648.8,0.2467]
[1736123173315,3.2078,3649.7,3648.9,3.2078]
[1736123173613,0.436,3649.9,3649.4,0.24666]
[1736123173614,0.68264,3649.9,3649.4,0.24666]
[1736123173816,0.24664,3649.8,3649.4,0.24666]
[1736123174509,0.436,3649.9,3649.3,0.24667]
[1736123174510,0.24665,3649.7,3649.3,0.24667]
[1736123175317,0.24664,3649.8,3649.4,0.24666]
[1736123175815,0.24665,3649.7,3649.3,3.45447]
[1736123176320,0.24665,3649.7,3649.3,3.2078]
[1736123176520,0.24665,3649.7,3649.3,3.45447]
[1736123176725,0.24665,3649.6,3649.3,3.2078]
[1736123176918,0.24665,3649.7,3649.3,3.45447]
[1736123177119,3.2078,3649.7,3648.9,3.2078]
[1736123177421,3.00660409,3649.6,3648.5,4.3258]
[1736123177629,0.24671,3648.8,3648.5,1.118]
[1736123178715,3.2078,3649.3,3648.5,1.118]
[1736123178920,0.2467,3648.9,3648.5,1.118]
[1736123179222,0.24671,3648.8,3648.5,1.118]
[1736123179615,0.2467,3649.0,3648.5,1.118]
[1736123179817,3.2078,3649.3,3648.5,1.118]
[1736123180018,0.2467,3648.9,3648.5,1.118]
[1736123181025,0.24671,3648.8,3648.5,1.118]
[1736123181322,3.2078,3648.9,3648.0,3.6435]
[1736123181627,2.58660409,3648.8,3648.0,3.2078]
[1736123181818,5.79440409,3648.4,3647.6,35.7]
[1736123182119,0.24677,3647.9,3647.6,35.7]
[1736123182515,5.79440409,3648.4,3647.6,35.7]
[1736123182516,0.24678,3647.8,3647.6,35.7]
[1736123182716,0.24678,3647.7,3647.6,35.7]
[1736123182920,5.79440409,3648.4,3647.6,35.7]
[1736123183130,0.24676,3648.0,3647.6,35.7]
[1736123183323,0.24677,3647.9,3647.6,35.7]
[1736123183820,0.24676,3648.0,3647.6,35.94679]
[1736123184017,5.79440409,3648.4,3647.6,35.7]
[1736123184315,0.24678,3647.7,3647.6,35.7]
[1736123184721,3.2078,3648.7,3647.6,38.9078]
[1736123185023,3.2078,3648.7,3648.4,0.24673]
[1736123185218,3.2078,3648.7,3648.5,0.24672]
[1736123185420,3.2078,3648.7,3648.4,0.24673]
[1736123185619,3.2078,3648.7,3648.2,1.118]
[1736123185814,3.45451,3648.7,3648.2,1.36474]
[1736123186023,3.2078,3648.7,3648.2,1.118]
[1736123186320,3.45452,3648.7,3648.3,0.24674]
[1736123187226,3.2078,3648.7,3648.2,1.118]
[1736123187418,3.45452,3648.7,3648.0,3.2078]
[1736123187725,0.24673,3648.6,3648.0,3.2078]
[1736123188224,3.2078,3648.7,3648.2,0.24674]
[1736123188421,3.45452,3648.7,3648.3,0.24674]
[1736123188723,3.2078,3648.7,3648.0,3.2078]
[1736123189425,3.2078,3648.7,3648.4,0.24673]
[1736123189631,3.45451,3648.7,3648.3,0.24674]
[1736123190320,3.45451,3648.7,3648.1,35.7]
[1736123190522,3.45451,3648.7,3645.9,15.84601559]
[1736123190523,3.2078,3648.3,3646.2,3.4822]
[1736123190726,5.79440409,3647.4,3647.0,4.2638363]
[1736123191024,0.24681,3647.3,3647.0,4.2638363]
[1736123191219,5.79440409,3647.4,3647.0,4.2638363]
[1736123191220,3.2078,3647.4,3647.0,4.2638363]
[1736123191417,0.24681,3647.3,3647.0,4.2638363]
[1736123191620,3.2078,3647.8,3647.0,7.4716363]
[1736123192123,3.2078,3647.8,3647.4,0.2468]
[1736123192124,3.45457,3647.8,3647.4,0.2468]
[1736123192728,0.24678,3647.7,3647.1,1.13]
[1736123192923,0.24678,3647.7,3647.3,0.2468]
[1736123193223,0.24681,3647.3,3647.1,1.13]
[1736123193426,3.2078,3647.4,3646.6,3.2078]
[1736123193725,0.24685,3646.8,3646.6,3.2078]
[1736123194029,0.4339,3647.2,3646.1,0.414]
[1736123194223,0.24686,3646.5,3646.1,0.66088]
[1736123194430,0.24683,3646.9,3646.3,0.24687]
[1736123194628,5.79440409,3647.0,3646.1,0.414]
[1736123195133,0.24686,3646.6,3646.2,0.24688]
[1736123195722,0.24686,3646.5,3646.2,0.24688]
[1736123195926,0.24686,3646.6,3646.2,0.24688]
[1736123196327,0.24687,3646.5,3646.1,0.414]
[1736123196522,0.4489,3646.9,3646.1,0.414]
[1736123196729,0.24686,3646.5,3646.1,0.66088]
[1736123196924,0.24684,3646.8,3646.5,0.24686]
[1736123197126,0.4339,3647.2,3646.3,5.79440409]
[1736123197322,0.4339,3647.2,3646.9,0.24683]
[1736123198225,0.24682,3647.1,3646.7,0.24684]
[1736123198432,0.24684,3646.9,3646.5,0.24686]
[1736123199831,0.24683,3647.0,3646.6,0.24685]
[1736123200628,0.24686,3646.6,3646.3,3.2078]
[1736123200825,5.79440409,3647.0,3646.1,0.414]
[1736123201031,0.24687,3646.5,3646.0,1.82059]
[1736123201226,0.24687,3646.4,3646.0,1.82059]
[1736123201630,0.24687,3646.4,3646.0,0.69059]
[1736123201840,0.24687,3646.4,3646.0,0.24689]
[1736123202030,5.79440409,3647.0,3646.1,0.24688]
[1736123202529,5.79440409,3647.0,3646.0,0.24689]
[1736123202726,5.79440409,3647.0,3645.9,3.2078]
[1736123202923,6.41148409,3647.0,3645.9,3.2078]
[1736123203130,0.24688,3646.3,3645.9,3.2078]
[1736123203327,3.2078,3646.3,3645.5,3.2078]
[1736123203528,0.2469,3645.9,3645.4,0.24693]
[1736123204224,0.24691,3645.8,3645.3,1.37694]
[1736123204429,0.8756,3646.2,3645.4,0.24693]
[1736123204735,0.24691,3645.8,3645.4,0.24693]
[1736123205633,0.8756,3646.2,3645.2,1.5535]
[1736123205934,0.24686,3646.5,3645.9,3.2078]
[1736123206134,0.24687,3646.4,3646.1,0.24689]
[1736123206632,3.2078,3646.8,3645.9,3.2078]
[1736123207035,0.24688,3646.2,3645.9,0.2469]
[1736123207331,3.2078,3646.4,3645.7,1.13]
[1736123207729,0.24689,3646.1,3645.7,1.37691]
[1736123208434,0.24689,3646.1,3645.8,0.2469]
[1736123209132,3.2078,3646.4,3645.7,1.13]
[1736123209527,0.24689,3646.2,3645.8,0.2469]
[1736123209931,0.24689,3646.1,3645.8,0.2469]
[1736123210428,3.2078,3646.4,3645.7,1.13]
[1736123210630,0.2469,3645.9,3645.7,1.13]
[1736123211430,0.24691,3645.8,3645.7,1.13]
[1736123211834,0.24693,3645.6,3645.4,3.2078]
[1736123212241,0.24693,3645.5,3645.4,3.2078]
[1736123212434,0.24692,3645.6,3645.4,3.2078]
[1736123213334,3.6249,3646.0,3645.4,3.2078]
[1736123213738,0.24693,3645.5,3645.4,3.2078]
[1736123214739,0.24692,3645.6,3645.4,3.2078]
[1736123215237,3.6249,3646.0,3645.4,3.2078]
[1736123215440,0.2469,3645.9,3645.4,3.2078]
[1736123215637,3.8718,3646.0,3645.6,0.24692]
[1736123216032,0.2469,3645.9,3645.1,1.13]
[1736123216232,0.24691,3645.8,3645.4,0.24693]
[1736123216534,0.24691,3645.8,3645.5,0.24693]
[1736123216844,0.24691,3645.8,3645.4,0.24693]
[1736123217039,0.24691,3645.8,3645.4,3.45473]
[1736123217542,2.58660409,3645.8,3645.0,3.2078]
[1736123217731,0.24695,3645.2,3645.0,3.2078]
[1736123218635,0.4183,3645.1,3645.0,3.2078]
[1736123219341,0.4183,3645.1,3645.0,3.45476]
[1736123219934,0.4183,3645.1,3645.0,3.2078]
[1736123221043,0.4183,3645.1,3645.0,3.45476]
[1736123221235,0.4183,3645.1,3645.0,3.2078]
[1736123221838,0.4183,3645.1,3645.0,3.45476]
[1736123222745,0.4183,3645.1,3645.0,3.2078]
[1736123223138,0.4183,3645.1,3645.0,3.45476]
[1736123223443,0.4183,3645.1,3644.4,0.4393]
[1736123223444,0.4183,3645.1,3644.4,3.2078]
[1736123223641,2.58660409,3645.0,3644.4,3.2078]
[1736123223945,0.247,3644.4,3644.1,4.2638363]
[1736123224254,0.24701,3644.4,3644.0,7.7186663]
[1736123224544,0.418,3644.3,3644.0,43.1716363]
[1736123224748,0.418,3644.3,3644.2,0.24702]
[1736123225134,0.65427,3644.9,3644.6,0.24699]
[1736123225344,0.418,3645.2,3644.5,1.13]
[1736123225640,0.418,3645.2,3645.1,0.24696]
[1736123225844,3.2078,3645.5,3644.6,0.8504]
[1736123226045,3.2078,3645.5,3644.8,3.2078]
[1736123226241,3.2078,3645.5,3645.4,0.24694]
[1736123226549,2.57856401,3646.2,3646.1,0.24689]
[1736123227044,0.4394,3646.2,3646.1,0.24689]
[1736123228041,0.4457,3646.5,3645.9,3.2078]
[1736123228343,0.4394,3646.9,3645.9,3.2078]
[1736123228651,0.4394,3646.9,3646.0,0.24689]
[1736123228951,0.4394,3646.9,3646.1,1.13]
[1736123229351,0.24684,3646.8,3646.4,0.24687]
[1736123229850,0.24684,3646.8,3646.1,1.13]
[1736123229851,0.68624,3646.9,3646.5,0.24686]
[1736123230043,0.68624,3646.9,3646.1,0.24689]
[1736123230245,0.4394,3646.9,3646.0,1.13]
[1736123230443,0.68624,3646.9,3646.5,0.24686]
[1736123231350,0.68624,3646.9,3646.0,1.13]
[1736123231650,0.68624,3646.9,3646.5,0.24686]
[1736123232349,0.4394,3646.9,3646.1,0.24689]
[1736123232553,0.68624,3646.9,3646.5,0.24686]
[1736123232952,0.24684,3646.8,3646.5,0.24686]
[1736123234253,0.4394,3646.9,3646.7,0.24685]
[1736123234849,3.2078,3647.0,3646.9,0.24683]
[1736123236156,0.24681,3647.3,3646.9,0.24683]
[1736123237354,0.24681,3647.3,3647.0,0.24683]
[1736123238159,0.24681,3647.3,3646.9,0.24683]
[1736123239258,0.4457,3647.4,3646.7,3.2078]
[1736123239259,3.03230409,3647.4,3646.7,3.2078]
[1736123239451,0.24684,3646.8,3646.7,3.2078]
[1736123239662,0.24684,3646.8,3646.4,0.24686]
[1736123239958,0.4413,3646.7,3646.4,0.24686]
[1736123240158,0.4253,3646.6,3646.3,7.4716363]
[1736123240354,0.4253,3646.6,3646.4,0.24686]
[1736123240750,0.4253,3646.6,3646.3,7.4716363]
[1736123240955,0.4253,3646.6,3646.5,0.24686]
[1736123241850,0.4253,3646.6,3646.4,0.24686]
[1736123242459,0.67216,3646.6,3646.3,3.45467]
[1736123242658,0.4253,3646.6,3646.4,0.24687]
[1736123244060,0.4253,3646.6,3646.3,3.2078]
[1736123244254,0.4253,3646.6,3645.9,7.4716363]
[1736123244456,0.24689,3646.0,3645.9,7.4716363]
[1736123245058,3.45469,3646.0,3645.9,4.2638363]
[1736123245854,3.45469,3646.0,3645.9,2.63446019]
[1736123246170,3.45469,3646.0,3645.2,35.7]
[1736123246171,0.2469,3645.9,3645.1,0.24695]
[1736123246464,0.24694,3645.4,3645.1,0.24695]
[1736123246664,2.58660409,3645.8,3645.1,35.7]
[1736123246870,0.24695,3645.3,3645.1,35.7]
[1736123247262,2.58660409,3645.8,3645.0,3.2078]
[1736123247468,3.2078,3645.1,3644.6,3.2078]
[1736123247670,3.2078,3645.1,3644.5,6.51972241]
[1736123247671,0.24698,3644.8,3644.5,6.51972241]
[1736123248167,0.24697,3644.9,3644.5,6.51972241]
[1736123248362,0.24697,3644.9,3644.6,0.24699]
[1736123248567,0.24697,3645.0,3644.6,0.24699]
[1736123248768,0.24697,3645.0,3644.5,6.27273241]
[1736123248968,0.24697,3645.0,3644.7,0.24698]
[1736123249179,0.24697,3645.0,3644.6,0.24698]
[1736123249671,3.2078,3645.1,3644.3,37.2409]
[1736123249868,0.24697,3644.9,3644.5,0.24699]
[1736123250571,0.24697,3644.9,3644.3,37.2409]
[1736123250773,0.24698,3644.8,3644.4,0.247]
[1736123250967,3.2078,3645.1,3644.3,37.077]
[1736123250968,0.24699,3644.7,3644.3,37.077]
[1736123251675,0.24698,3644.8,3644.4,0.247]
[1736123251874,3.2078,3645.1,3644.4,0.247]
[1736123252076,0.24698,3644.7,3644.4,0.247]
[1736123252276,3.2078,3645.1,3644.3,36.83]
[1736123252574,3.2078,3645.1,3644.6,0.24699]
[1736123253165,3.2078,3645.1,3644.3,36.83]
[1736123253377,0.24697,3644.9,3644.5,0.24699]
[1736123254069,0.24697,3644.9,3644.3,36.83]
[1736123254070,0.24698,3644.7,3644.3,37.077]
[1736123254271,0.24697,3644.9,3644.4,0.247]
[1736123254465,0.24697,3644.9,3644.6,0.01115037]
[1736123254676,3.2078,3645.1,3644.6,0.01115037]
[1736123254976,0.24698,3644.8,3644.6,0.01115037]
[1736123255476,0.24697,3644.9,3644.6,0.01115037]
[1736123256781,0.8682,3645.3,3644.6,3.21895037]
[1736123256974,3.2078,3645.5,3644.7,2.20283686]
[1736123257169,0.24695,3645.2,3644.8,0.24697]
[1736123257373,0.24696,3645.0,3644.7,0.24698]
[1736123257582,3.2078,3645.5,3644.8,0.24697]
[1736123257775,3.2078,3645.5,3644.7,0.24698]
[1736123258080,0.24693,3645.4,3644.7,0.24698]
[1736123258281,3.2078,3645.5,3644.7,0.24698]
[1736123258580,0.24696,3645.0,3644.7,0.24698]
[1736123258881,0.24696,3645.1,3644.8,0.24697]
[1736123259671,3.2078,3645.5,3644.6,3.21895037]
[1736123259870,0.24694,3645.4,3645.1,0.24695]
[1736123261278,0.24694,3645.4,3645.0,0.24696]
[1736123262482,0.24694,3645.3,3645.0,0.24696]
[1736123262887,3.2078,3645.5,3644.6,3.21895037]
[1736123263284,0.2469,3645.9,3645.6,0.24692]
[1736123263484,2.13916401,3646.0,3645.3,2.20283686]
[1736123263690,2.13916401,3646.0,3645.9,0.2469]
[1736123264190,2.13916401,3646.0,3645.5,35.7]
[1736123264379,2.13916401,3646.0,3645.8,0.2469]
[1736123264783,3.2078,3646.1,3645.8,0.2469]
[1736123264983,3.2078,3646.1,3645.5,35.7]
[1736123264984,3.2078,3646.1,3645.9,0.2469]
[1736123265180,0.8487,3646.3,3645.8,3.2078]
[1736123265482,0.24689,3646.2,3645.8,3.45471]
[1736123267487,0.24688,3646.2,3645.9,0.2469]
[1736123268086,0.24688,3646.2,3645.8,3.4547]
[1736123269096,0.24688,3646.2,3645.9,0.2469]
[1736123269299,1.09558,3646.3,3645.9,0.2469]
[1736123270097,0.24688,3646.2,3645.9,0.2469]
[1736123271596,0.24688,3646.2,3645.8,3.21895037]
[1736123271597,1.09557,3646.3,3646.0,0.24689]
[1736123271898,0.24688,3646.2,3645.9,0.2469]
[1736123272098,0.24688,3646.2,3645.8,3.21895037]
[1736123272293,0.24688,3646.2,3645.9,0.2469]
[1736123272896,0.8487,3646.3,3645.8,3.46586037]
[1736123272897,0.24689,3646.1,3645.8,3.46586037]
[1736123273096,0.8487,3646.3,3645.8,3.21895037]
[1736123273298,0.24688,3646.2,3645.9,0.2469]
[1736123273598,0.24688,3646.2,3645.8,3.46585037]
[1736123274700,0.8487,3646.3,3645.9,0.2469]
[1736123274903,1.09558,3646.3,3646.0,0.24689]
[1736123275098,1.09558,3646.3,3645.9,0.4395]
[1736123275304,1.09558,3646.3,3645.9,0.6864]
[1736123275605,0.24688,3646.2,3645.9,0.6864]
[1736123276000,0.8487,3646.3,3645.9,0.4395]
[1736123276306,0.67157,3646.3,3646.0,0.24689]
[1736123277007,0.4247,3646.3,3645.8,3.21895037]
[1736123277305,2.44973686,3645.9,3645.8,0.01115037]
[1736123278102,2.86123686,3645.9,3645.8,0.01115037]
[1736123280204,7.86123686,3645.9,3645.8,0.01115037]
[1736123280501,7.86123686,3645.9,3644.6,0.24698]
[1736123280502,7.61433686,3645.9,3644.6,0.24698]
[1736123280703,2.20283686,3645.1,3644.5,3.2078]
[1736123280896,0.4243,3645.0,3644.5,3.2078]
[1736123281102,0.24699,3644.6,3644.5,3.2078]
[1736123281303,0.24698,3644.7,3644.5,3.2078]
[1736123281503,0.24701,3644.4,3644.1,6.27273241]
[1736123281708,0.247,3644.4,3644.1,6.27273241]
[1736123281914,0.24701,3644.3,3644.0,1.10852]
[1736123282412,0.24702,3644.1,3643.9,40.0148]
[1736123282612,0.24702,3644.2,3643.9,40.0148]
[1736123283308,0.24702,3644.2,3643.9,4.3148]
[1736123283512,0.24701,3644.3,3643.9,4.56183]
[1736123284012,0.247,3644.5,3644.2,0.24701]
[1736123284509,0.247,3644.5,3644.4,0.0157697]
[1736123284714,0.67829,3644.6,3644.4,0.0157697]
[1736123285006,0.4313,3644.6,3644.4,0.0157697]
[1736123285211,0.24699,3644.5,3644.4,0.0157697]
[1736123286312,2.44982686,3644.5,3644.4,0.0157697]
[1736123290015,0.4313,3644.6,3644.4,0.0157697]
[1736123290214,3.2078,3644.7,3644.4,0.0157697]
[1736123290409,3.2078,3644.7,3644.5,0.24699]
[1736123290715,2.38614401,3644.8,3644.6,0.8537]
[1736123290915,0.24698,3644.7,3644.6,0.8537]
[1736123291617,2.13916401,3644.8,3644.6,0.8537]
[1736123291813,0.24698,3644.8,3644.6,0.8537]
[1736123292020,0.24698,3644.7,3644.6,0.8537]
[1736123293123,0.24696,3645.0,3644.7,0.24698]
[1736123293316,5.34696401,3645.2,3644.6,3.05653686]
[1736123294022,5.34696401,3645.2,3645.0,0.24696]
[1736123294520,3.2078,3645.2,3645.0,0.24696]
[1736123294722,3.2078,3645.2,3644.9,0.24697]
[1736123294723,3.45475,3645.2,3644.9,0.24697]
[1736123295124,3.45475,3645.2,3645.0,0.24696]
[1736123295326,3.2078,3645.2,3644.7,3.2078]
[1736123295522,0.24697,3644.9,3644.6,1.9607]
[1736123295926,0.24697,3644.9,3644.7,0.24698]
[1736123296327,0.24697,3644.9,3644.6,1.9607]
[1736123296624,0.24696,3645.1,3644.7,0.24698]
[1736123296822,3.2078,3645.2,3644.7,0.24698]
[1736123297024,3.2078,3645.2,3644.6,1.9607]
[1736123297329,0.24697,3644.9,3644.6,2.20769]
[1736123297930,0.24696,3645.0,3644.6,2.20769]
[1736123298322,0.24696,3645.0,3644.7,0.24698]
[1736123298727,3.2078,3645.2,3644.6,1.9607]
[1736123298929,0.24697,3644.9,3644.6,1.9607]
[1736123299430,0.24697,3644.9,3644.7,0.24698]
[1736123300030,0.24697,3644.8,3644.6,2.20769]
[1736123300230,0.24697,3644.9,3644.6,2.20769]
[1736123302130,0.24698,3644.8,3644.6,2.20769]
[1736123303250,0.8562,3645.1,3644.6,2.20769]
[1736123303543,0.24697,3644.9,3644.6,2.20769]
[1736123304248,0.24698,3644.8,3644.6,2.20769]
[1736123306444,0.8562,3645.1,3644.6,2.20769]
[1736123306641,0.24697,3644.9,3644.6,2.20769]
[1736123308347,0.8562,3645.1,3644.6,1.9607]
[1736123308547,0.24698,3644.8,3644.6,1.9607]
[1736123308747,0.24698,3644.7,3644.6,1.9607]
[1736123310145,0.24698,3644.7,3644.6,0.8537]
[1736123310453,0.24699,3644.6,3644.4,0.0157697]
[1736123310747,0.24698,3644.7,3644.4,0.2627697]
[1736123311150,0.24699,3644.6,3644.4,0.2627697]
[1736123314556,0.8562,3645.1,3644.4,0.0157697]
[1736123314851,0.24698,3644.8,3644.5,0.24699]
[1736123315051,0.24699,3644.7,3644.5,0.24699]
[1736123315252,0.24698,3644.8,3644.6,0.24699]
[1736123315451,0.8562,3645.1,3644.4,0.0157697]
[1736123315647,0.24698,3644.8,3644.6,0.24699]
[1736123316250,0.8562,3645.1,3644.6,0.24699]
[1736123316458,0.24697,3645.0,3644.7,0.24698]
[1736123316656,2.13916401,3645.3,3644.9,3.2078]
[1736123316957,1.45169401,3645.3,3645.2,0.24695]
[1736123317151,1.45169401,3645.3,3645.2,35.94695]
[1736123317850,3.98074019,3646.4,3645.2,35.7]
[1736123318049,0.24689,3646.1,3645.3,3.2078]
[1736123318245,0.24689,3646.0,3645.3,3.2078]
[1736123318557,0.2469,3645.9,3645.5,0.24692]
[1736123320655,0.2469,3645.9,3645.3,3.2078]
[1736123320851,0.2469,3645.9,3645.6,0.24692]
[1736123321153,0.2469,3645.9,3645.3,3.2078]
[1736123321154,0.24689,3646.1,3645.8,0.2469]
[1736123321355,0.24689,3646.0,3645.8,0.2469]
[1736123321751,0.24689,3646.0,3645.7,0.24691]
[1736123321952,6.35764019,3646.2,3646.1,0.24689]
[1736123322850,6.35764019,3646.2,3646.0,0.24689]
[1736123323050,6.35764019,3646.2,3646.1,0.24689]
[1736123323051,3.2078,3646.2,3646.1,0.24689]
[1736123324656,0.8309,3646.4,3645.8,0.8404]
[1736123325056,3.6552,3646.7,3645.8,0.8404]
[1736123325057,3.2078,3646.7,3646.4,0.24686]
[1736123325261,3.2078,3646.7,3646.5,0.24686]
[1736123325847,3.2078,3646.7,3646.2,0.4432]
[1736123326057,0.24686,3646.6,3646.3,0.24687]
[1736123326257,3.45465,3646.7,3646.4,0.24687]
[1736123326460,0.24685,3646.7,3646.4,0.24687]
[1736123326658,0.8495,3647.0,3646.2,0.4432]
[1736123326859,0.24685,3646.7,3646.3,0.24687]
[1736123327555,0.24686,3646.6,3646.3,0.24687]
[1736123328061,0.8495,3647.0,3646.3,0.24687]
[1736123328359,0.24684,3646.8,3646.4,0.24686]
[1736123328657,0.8495,3647.0,3646.4,0.24686]
[1736123328658,0.24685,3646.7,3646.4,0.24686]
[1736123329559,0.24684,3646.9,3646.3,0.24687]
[1736123329861,0.24684,3646.8,3646.2,0.4432]
[1736123330053,0.24684,3646.8,3646.5,0.24686]
[1736123330760,0.8495,3647.0,3646.2,0.4432]
[1736123330962,0.24685,3646.7,3646.3,0.24687]
[1736123331163,0.8495,3647.0,3646.4,0.24686]
[1736123331462,0.24685,3646.7,3646.4,0.24686]
[1736123333561,0.8495,3647.0,3646.3,0.24687]
[1736123333562,0.24686,3646.6,3646.3,0.24687]
[1736123334269,0.8495,3647.0,3646.3,0.24687]
[1736123334764,0.24685,3646.6,3646.3,0.24687]
[1736123334966,0.8495,3647.0,3646.2,0.4432]
[1736123335364,0.24687,3646.5,3646.2,0.4432]
[1736123335563,0.24687,3646.5,3646.2,0.69008]
[1736123336267,0.8495,3647.0,3646.2,0.4432]
[1736123336462,0.24685,3646.7,3646.4,0.24687]
[1736123336668,0.24685,3646.6,3646.4,0.24687]
[1736123336860,0.8495,3647.0,3646.3,0.24687]
[1736123337066,0.24686,3646.5,3646.3,0.24687]
[1736123337665,0.24686,3646.5,3646.2,0.69008]
[1736123341165,0.8495,3647.0,3646.2,0.4432]
[1736123341367,0.24686,3646.5,3646.3,0.24687]
[1736123341669,0.24686,3646.5,3646.2,0.4432]
[1736123341670,0.24686,3646.5,3646.2,0.69008]
[1736123342771,0.24687,3646.4,3646.2,0.4432]
[1736123343669,0.8495,3647.0,3646.2,0.4432]
[1736123343868,0.24686,3646.5,3646.2,0.69008]
[1736123344270,0.24685,3646.6,3646.3,0.24687]
[1736123344472,0.24686,3646.5,3646.3,0.24687]
[1736123344672,0.24686,3646.6,3646.3,0.24687]
[1736123344871,0.24686,3646.5,3646.3,0.24687]
[1736123345170,0.24686,3646.5,3646.2,0.4432]
[1736123345368,0.24686,3646.6,3646.2,0.4432]
[1736123345569,0.24686,3646.6,3646.3,0.24687]
[1736123346879,0.8495,3647.0,3646.2,0.4432]
[1736123347176,1.09633,3647.0,3646.8,0.24684]
[1736123347370,0.8495,3647.0,3646.8,0.24684]
[1736123347575,0.8495,3647.0,3646.8,1.12834]
[1736123347776,0.4108,3647.0,3646.8,1.12834]
[1736123347972,0.65763,3647.0,3646.8,0.8815]
[1736123348164,0.4108,3647.0,3646.8,0.8815]
[1736123348368,0.24683,3646.9,3646.8,0.8815]
[1736123349777,0.4108,3647.0,3646.8,0.8815]
[1736123350080,0.65763,3647.0,3646.8,1.12834]
[1736123352278,0.24683,3646.9,3646.8,0.8815]
[1736123352477,0.65763,3647.0,3646.8,0.8815]